fUST/lending_fUST_20250725
["ID","MTS","AMOUNT","RATE_DAILY","PERIOD"]
[374697441,1753417850790,-460.0,0.00019004,2]
[374697442,1753417850800,-460.0,0.00019004,2]
[374697443,1753417850809,-460.0,0.00019004,2]
[374697444,1753417850819,-460.0,0.00019004,2]
[374697445,1753417850828,-460.0,0.00019004,2]
[374697446,1753417850838,-460.0,0.00019004,2]
[374697447,1753417850847,-460.0,0.00019004,2]
[374697448,1753417850857,-460.0,0.00019004,2]
[374697449,1753417850867,-460.0,0.00019004,2]
[374697450,1753417850876,-462.26392948,0.00019004,2]
[374697451,1753417850886,-460.0,0.00019004,2]
[374697452,1753417850895,-460.0,0.00019004,2]
[374697453,1753417850905,-460.0,0.00019004,2]
[374697454,1753417850914,-214.53898099,0.00019004,2]
[374697455,1753417850924,-460.0,0.00019004,2]
[374697456,1753417850933,-460.0,0.00019004,2]
[374697457,1753417850943,-460.0,0.00019004,2]
[374697458,1753417850953,-460.0,0.00019004,2]
[374697459,1753417850962,-460.0,0.00019004,2]
[374697460,1753417850972,-460.0,0.00019004,2]
[374697461,1753417850983,-460.0,0.00019004,2]
[374697462,1753417850992,-460.0,0.00019004,2]
[374697463,1753417851002,-412.71720283,0.00019004,2]
[374697464,1753417851012,-245.50016698,0.00019004,2]
[374697465,1753417851021,-201.20633806,0.00019004,2]
[374697466,1753417851032,-460.0,0.00019004,2]
[374697467,1753417851042,-460.0,0.00019004,2]
[374697468,1753417851052,-556.34823857,0.00019004,2]
[374697469,1753417851062,-460.0,0.00019004,2]
[374697470,1753417851071,-460.0,0.00019004,2]
[374697471,1753417851088,-460.0,0.00019004,2]
[374697472,1753417851097,-460.0,0.00019004,2]
[374697473,1753417851107,-460.0,0.00019004,2]
[374697474,1753417851117,-460.0,0.00019004,2]
[374697475,1753417851126,-460.0,0.00019004,2]
[374697476,1753417851135,-460.0,0.00019004,2]
[374697477,1753417851145,-460.0,0.00019004,2]
[374697478,1753417851154,-460.0,0.00019004,2]
[374697479,1753417851163,-460.0,0.00019004,2]
[374697480,1753417851173,-462.87783646,0.00019004,2]
[374697481,1753417851183,-460.0,0.00019004,2]
[374697482,1753417851192,-460.0,0.00019004,2]
[374697483,1753417851202,-395.47935336,0.00019004,2]
[374697484,1753417851211,-460.0,0.00019004,2]
[374697485,1753417851220,-460.0,0.00019004,2]
[374697486,1753417851230,-466.22532893,0.00019004,2]
[374697487,1753417851239,-251.00143846,0.00019004,2]
[374697488,1753417851249,-460.0,0.00019004,2]
[374697489,1753417851259,-460.0,0.00019004,2]
[374697490,1753417851268,-159.46842286,0.00019004,2]
[374697491,1753417851278,-460.0,0.00019004,2]
[374697492,1753417851290,-461.04209964,0.00019004,2]
[374697493,1753417851300,-460.0,0.00019004,2]
[374697494,1753417851310,-460.0,0.00019004,2]
[374697495,1753417851319,-460.0,0.00019004,2]
[374697496,1753417851328,-657.64,0.00019004,2]
[374697497,1753417851338,-460.0,0.00019004,2]
[374697498,1753417851347,-460.0,0.00019004,2]
[374697499,1753417851356,-474.79582029,0.00019004,2]
[374697500,1753417851366,-349.36553616,0.00019004,2]
[374697501,1753417851375,-460.0,0.00019004,2]
[374697502,1753417851385,-460.0,0.00019004,2]
[374697503,1753417851394,-460.0,0.00019004,2]
[374697504,1753417851403,-460.0,0.00019004,2]
[374697505,1753417851413,-460.0,0.00019004,2]
[374697506,1753417851426,-1958.78,0.00019004,2]
[374697507,1753417851435,-460.0,0.00019004,2]
[374697508,1753417851445,-460.0,0.00019004,2]
[374697509,1753417851455,-460.0,0.00019004,2]
[374697510,1753417851464,-460.0,0.00019004,2]
[374697511,1753417851473,-460.0,0.00019004,2]
[374697512,1753417851483,-461.50260577,0.00019004,2]
[374697513,1753417851493,-375.90536632,0.00019004,2]
[374697514,1753417851503,-477.43,0.00019004,2]
[374697515,1753417851513,-1325.76,0.00019004,2]
[374697516,1753417851523,-460.0,0.00019004,2]
[374697517,1753417851534,-460.0,0.00019004,2]
[374697518,1753417851544,-526.2,0.00019004,2]
[374697519,1753417851553,-460.0,0.00019004,2]
[374697520,1753417851563,-460.0,0.00019004,2]
[374697521,1753417851572,-460.0,0.00019004,2]
[374697522,1753417851582,-460.0,0.00019004,2]
[374697523,1753417851592,-461.97597654,0.00019004,2]
[374697524,1753417851601,-460.0,0.00019004,2]
[374697525,1753417851611,-3195.63,0.00019004,2]
[374697526,1753417851620,-460.0,0.00019004,2]
[374697527,1753417851629,-460.0,0.00019004,2]
[374697528,1753417851638,-460.0,0.00019004,2]
[374697529,1753417851648,-373.88294649,0.00019004,2]
[374697530,1753417851658,-460.0,0.00019004,2]
[374697531,1753417851668,-1089.39,0.00019004,2]
[374697532,1753417851677,-460.0,0.00019004,2]
[374697533,1753417851687,-460.0,0.00019004,2]
[374697534,1753417851697,-460.0,0.00019004,2]
[374697535,1753417851707,-460.0,0.00019004,2]
[374697536,1753417851718,-460.0,0.00019004,2]
[374697537,1753417851727,-460.0,0.00019004,2]
[374697538,1753417851737,-463.41410887,0.00019004,2]
[374697539,1753417851747,-460.0,0.00019004,2]
[374697540,1753417851757,-462.8291943,0.00019004,2]
[374697541,1753417851767,-424.0,0.00019005,2]
[374697542,1753417851776,-601.66,0.00019005,2]
[374697543,1753417851791,-460.0,0.00019005,2]
[374697544,1753417851802,-373.71948405,0.00019005,2]
[374697545,1753417851811,-1004.72513593,0.00019081,2]
[374697546,1753417851821,-264.92728108,0.00019086,6]
[374697547,1753417851831,-460.0,0.00019104,2]
[374697548,1753417851841,-6423.7214443,0.00019107,2]
[374697549,1753417851850,-458.34,0.00019173,2]
[374697550,1753417851860,-593.34,0.00019173,2]
[374697551,1753417851870,-1518.26,0.00019173,2]
[374697552,1753417851880,-460.0,0.00019174,2]
[374697553,1753417851890,-2865.13,0.00019174,2]
[374697554,1753417851899,-1473.68,0.00019174,2]
[374697555,1753417851909,-460.0,0.00019174,2]
[374697556,1753417851919,-460.0,0.00019174,2]
[374697557,1753417851928,-1303.91,0.00019174,2]
[374697558,1753417851938,-1396.28,0.00019174,2]
[374697559,1753417851947,-1165.0,0.00019174,2]
[374697560,1753417851957,-503.73566674,0.00019174,2]
[374697561,1753417851967,-460.0,0.00019174,2]
[374697562,1753417851976,-548.61,0.00019174,2]
[374697563,1753417851985,-821.0,0.00019175,2]
[374697564,1753417851995,-718.0,0.00019175,2]
[374697565,1753417852004,-343.85,0.00019177,2]
[374697566,1753417852013,-460.0,0.00019177,2]
[374697567,1753417852022,-460.0,0.00019177,2]
[374697568,1753417852035,-623.06,0.00019177,2]
[374697569,1753417852045,-555.6,0.00019177,2]
[374697570,1753417852055,-561.1,0.00019177,2]
[374697571,1753417852067,-460.0,0.00019177,2]
[374697572,1753417852077,-460.0,0.00019178,2]
[374697573,1753417852087,-893.71,0.00019178,2]
[374697574,1753417852096,-321.28337792,0.00019178,7]
[374697575,1753417852106,-460.0,0.00019178,2]
[374697576,1753417852115,-151.0,0.00019178,2]
[374697577,1753417852124,-151.51462175,0.00019178,2]
[374697578,1753417852134,-5000.0,0.00019178,2]
[374697579,1753417852143,-666.0,0.00019178,2]
[374697580,1753417852153,-495.611002,0.00019178,2]
[374697581,1753417852162,-1718.86412499,0.00019205,5]
[374697582,1753417852172,-215.93003454,0.00019233,2]
[374697583,1753417852181,-526.33361954,0.00019243,2]
[374697584,1753417852190,-231.20877768,0.00019243,2]
[374697585,1753417852200,-160.0,0.00019243,2]
[374697586,1753417852209,-160.0,0.00019243,2]
[374697587,1753417852219,-12627.2413641,0.00019243,2]
[374697588,1753417852228,-160.0,0.00019243,2]
[374697589,1753417852237,-840.4016166,0.00019243,2]
[374697590,1753417852247,-160.0,0.00019243,2]
[374697591,1753417852257,-160.0,0.00019243,2]
[374697592,1753417852266,-476.88235691,0.00019243,2]
[374697593,1753417852276,-260.0,0.00019248,2]
[374697594,1753417852288,-460.0,0.00019274,2]
[374697595,1753417852298,-460.0,0.00019274,2]
[374697596,1753417852307,-495.28,0.00019274,2]
[374697597,1753417852317,-525.43,0.00019274,2]
[374697598,1753417852327,-485.59,0.00019274,2]
[374697599,1753417852336,-460.0,0.00019274,2]
[374697600,1753417852346,-1557.28,0.00019274,2]
[374697601,1753417852355,-1056.98,0.00019274,2]
[374697602,1753417852364,-694.05,0.00019274,2]
[374697603,1753417852374,-318.47,0.00019274,2]
[374697604,1753417852383,-1238.97,0.00019274,2]
[374697605,1753417852393,-569.5,0.00019274,2]
[374697606,1753417852402,-460.0,0.00019274,2]
[374697607,1753417852413,-2159.42,0.00019274,2]
[374697608,1753417852424,-486.48,0.00019274,2]
[374697609,1753417852433,-460.0,0.00019278,2]
[374697610,1753417852442,-460.0,0.00019278,2]
[374697611,1753417852452,-460.0,0.00019278,2]
[374697612,1753417852463,-460.0,0.00019278,2]
[374697613,1753417852472,-460.0,0.00019278,2]
[374697614,1753417852482,-233.54690599,0.00019278,2]
[374697615,1753417852492,-460.0,0.00019278,2]
[374697616,1753417852507,-460.0,0.00019278,2]
[374697617,1753417852517,-460.0,0.00019278,2]
[374697618,1753417852527,-460.0,0.00019278,2]
[374697619,1753417852540,-460.0,0.00019278,2]
[374697620,1753417852550,-465.09424804,0.00019278,2]
[374697621,1753417852559,-460.0,0.00019278,2]
[374697622,1753417852569,-460.0,0.00019278,2]
[374697623,1753417852579,-460.0,0.00019278,2]
[374697624,1753417852590,-462.4153484,0.00019278,2]
[374697625,1753417852600,-657.64,0.00019278,2]
[374697626,1753417852610,-460.0,0.00019278,2]
[374697627,1753417852620,-460.0,0.00019278,2]
[374697628,1753417852629,-460.0,0.00019278,2]
[374697629,1753417852639,-1958.78,0.00019278,2]
[374697630,1753417852648,-460.0,0.00019278,2]
[374697631,1753417852658,-477.43,0.00019278,2]
[374697632,1753417852667,-1325.76,0.00019278,2]
[374697633,1753417852676,-460.0,0.00019278,2]
[374697634,1753417852686,-526.2,0.00019278,2]
[374697635,1753417852696,-460.0,0.00019278,2]
[374697636,1753417852706,-460.0,0.00019278,2]
[374697637,1753417852716,-460.0,0.00019278,2]
[374697638,1753417852725,-3195.63,0.00019278,2]
[374697639,1753417852734,-460.0,0.00019278,2]
[374697640,1753417852745,-1089.39,0.00019278,2]
[374697641,1753417852756,-460.0,0.00019278,2]
[374697642,1753417852765,-460.0,0.00019278,2]
[374697643,1753417852775,-460.0,0.00019278,2]
[374697644,1753417852786,-460.0,0.00019278,2]
[374697645,1753417852796,-601.66,0.00019279,2]
[374697646,1753417852805,-220.90854178,0.00019279,2]
[374697647,1753417852814,-151.0,0.000193,2]
[374697648,1753417852824,-523.69418917,0.00019309,2]
[374697649,1753417852833,-1000.0,0.00019309,2]
[374697650,1753417852842,-1000.0,0.00019309,2]
[374697651,1753417852852,-1000.0,0.00019309,2]
[374697652,1753417852862,-1000.0,0.00019309,2]
[374697653,1753417852871,-202.89422899,0.00019309,2]
[374697654,1753417852881,-1000.0,0.00019309,2]
[374697655,1753417852891,-1002.8843737,0.00019309,2]
[374697656,1753417852902,-501.53651952,0.00019309,2]
[374697657,1753417852911,-1139.8429715,0.00019309,2]
[374697658,1753417852921,-1000.0,0.00019309,2]
[374697659,1753417852931,-100000.0,0.00019329,2]
[374697660,1753417852940,-460.0,0.00019378,2]
[374697661,1753417852950,-6423.7214443,0.00019383,2]
[374697662,1753417852960,-1518.26,0.00019447,2]
[374697663,1753417852970,-460.0,0.00019448,2]
[374697664,1753417852980,-2865.13,0.00019448,2]
[374697665,1753417852990,-1473.68,0.00019448,2]
[374697666,1753417852999,-460.0,0.00019448,2]
[374697667,1753417853009,-460.0,0.00019448,2]
[374697668,1753417853019,-1303.91,0.00019448,2]
[374697669,1753417853028,-1396.28,0.00019448,2]
[374697670,1753417853041,-1165.0,0.00019448,2]
[374697671,1753417853050,-460.0,0.00019448,2]
[374697672,1753417853059,-548.61,0.00019448,2]
[374697673,1753417853069,-821.0,0.00019449,2]
[374697674,1753417853079,-718.0,0.00019449,2]
[374697675,1753417853088,-460.0,0.00019451,2]
[374697676,1753417853097,-460.0,0.00019451,2]
[374697677,1753417853107,-623.06,0.00019451,2]
[374697678,1753417853117,-555.6,0.00019451,2]
[374697679,1753417853126,-561.1,0.00019451,2]
[374697680,1753417853136,-460.0,0.00019451,2]
[374697681,1753417853146,-460.0,0.00019452,2]
[374697682,1753417853155,-893.71,0.00019452,2]
[374697683,1753417853166,-460.0,0.00019452,2]
[374697684,1753417853175,-276.95141514,0.00019488,2]
[374697685,1753417853185,-386.72420634,0.00019548,2]
[374697686,1753417853194,-460.0,0.00019548,2]
[374697687,1753417853204,-495.28,0.00019548,2]
[374697688,1753417853213,-525.43,0.00019548,2]
[374697689,1753417853223,-485.59,0.00019548,2]
[374697690,1753417853232,-460.0,0.00019548,2]
[374697691,1753417853242,-1557.28,0.00019548,2]
[374697692,1753417853251,-1056.98,0.00019548,2]
[374697693,1753417853260,-694.05,0.00019548,2]
[374697694,1753417853270,-1238.97,0.00019548,2]
[374697695,1753417853280,-569.5,0.00019548,2]
[374697696,1753417853292,-460.0,0.00019548,2]
[374697697,1753417853301,-2159.42,0.00019548,2]
[374697698,1753417853311,-486.48,0.00019548,2]
[374697699,1753417853320,-460.0,0.00019552,2]
[374697700,1753417853330,-551.48059643,0.00019552,2]
[374697701,1753417853340,-460.0,0.00019552,2]
[374697702,1753417853349,-408.84163523,0.00019552,2]
[374697703,1753417853527,-460.0,0.00019552,2]
[374697704,1753417853539,-460.0,0.00019552,2]
[374697705,1753417853549,-460.0,0.00019552,2]
[374697706,1753417853559,-460.0,0.00019552,2]
[374697707,1753417853568,-460.0,0.00019552,2]
[374697708,1753417853578,-460.0,0.00019552,2]
[374697709,1753417853587,-657.64,0.00019552,2]
[374697710,1753417853597,-460.0,0.00019552,2]
[374697711,1753417853607,-460.0,0.00019552,2]
[374697712,1753417853617,-549.35,0.00019552,2]
[374697713,1753417853626,-1958.78,0.00019552,2]
[374697714,1753417853636,-477.43,0.00019552,2]
[374697715,1753417853646,-1325.76,0.00019552,2]
[374697716,1753417853656,-460.0,0.00019552,2]
[374697717,1753417853665,-526.2,0.00019552,2]
[374697718,1753417853675,-160.64,0.00019552,2]
[374697719,1753417853684,-460.0,0.00019552,2]
[374697720,1753417853694,-3195.63,0.00019552,2]
[374697721,1753417853704,-1089.39,0.00019552,2]
[374697722,1753417853714,-516.79534477,0.00019552,2]
[374697723,1753417853724,-460.0,0.00019552,2]
[374697724,1753417853734,-460.0,0.00019552,2]
[374697725,1753417853743,-601.66,0.00019553,2]
[374697726,1753417853754,-460.0,0.00019637,2]
[374697727,1753417853764,-460.0,0.00019652,2]
[374697728,1753417853773,-6423.7214443,0.00019659,2]
[374697729,1753417853786,-151.0,0.000197,2]
[374697730,1753417853796,-1518.26,0.00019721,2]
[374697731,1753417853806,-460.0,0.00019722,2]
[374697732,1753417853815,-2865.13,0.00019722,2]
[374697733,1753417853824,-1473.68,0.00019722,2]
[374697734,1753417853834,-460.0,0.00019722,2]
[374697735,1753417853844,-263.00448744,0.00019722,2]
[374697736,1753417853853,-1303.91,0.00019722,2]
[374697737,1753417853863,-1396.28,0.00019722,2]
[374697738,1753417853872,-1165.0,0.00019722,2]
[374697739,1753417853882,-460.0,0.00019722,2]
[374697740,1753417853892,-548.61,0.00019722,2]
[374697741,1753417853902,-821.0,0.00019723,2]
[374697742,1753417853912,-718.0,0.00019723,2]
[374697743,1753417853922,-460.0,0.00019725,2]
[374697744,1753417853932,-460.0,0.00019725,2]
[374697745,1753417853941,-623.06,0.00019725,2]
[374697746,1753417853951,-555.6,0.00019725,2]
[374697747,1753417853961,-561.1,0.00019725,2]
[374697748,1753417853971,-460.0,0.00019725,2]
[374697749,1753417853980,-460.0,0.00019726,2]
[374697750,1753417853990,-893.71,0.00019726,2]
[374697751,1753417854004,-460.0,0.00019726,2]
[374697752,1753417854014,-360.0,0.00019796,2]
[374697753,1753417854024,-1004.72513593,0.000198,2]
[374697754,1753417854035,-460.0,0.00019822,2]
[374697755,1753417854046,-495.28,0.00019822,2]
[374697756,1753417854055,-525.43,0.00019822,2]
[374697757,1753417854067,-485.59,0.00019822,2]
[374697758,1753417854088,-460.0,0.00019822,2]
[374697759,1753417854097,-1557.28,0.00019822,2]
[374697760,1753417854107,-1056.98,0.00019822,2]
[374697761,1753417854117,-694.05,0.00019822,2]
[374697762,1753417854127,-1238.97,0.00019822,2]
[374697763,1753417854136,-569.5,0.00019822,2]
[374697764,1753417854145,-460.0,0.00019822,2]
[374697765,1753417854156,-2159.42,0.00019822,2]
[374697766,1753417854165,-486.48,0.00019822,2]
[374697767,1753417854175,-460.0,0.00019826,2]
[374697768,1753417854184,-478.9,0.00019826,2]
[374697769,1753417854194,-570.91,0.00019826,2]
[374697770,1753417854203,-657.64,0.00019826,2]
[374697771,1753417854213,-460.0,0.00019826,2]
[374697772,1753417854223,-460.0,0.00019826,2]
[374697773,1753417854232,-1958.78,0.00019826,2]
[374697774,1753417854242,-477.43,0.00019826,2]
[374697775,1753417854251,-1325.76,0.00019826,2]
[374697776,1753417854261,-526.2,0.00019826,2]
[374697777,1753417854271,-2622.06239552,0.00019826,2]
[374697778,1753417854280,-460.0,0.00019826,2]
[374697779,1753417854291,-2016.56412824,0.00019826,2]
[374697780,1753417854301,-3195.63,0.00019826,2]
[374697781,1753417854310,-1089.39,0.00019826,2]
[374697782,1753417854320,-460.0,0.00019826,2]
[374697783,1753417854328,-460.0,0.00019826,2]
[374697784,1753417854338,-601.66,0.00019827,2]
[374697785,1753417854347,-503.78824934,0.00019857,2]
[374697786,1753417854357,-1003.65022164,0.00019857,2]
[374697787,1753417854366,-502.66592554,0.00019857,2]
[374697788,1753417854375,-1500.0,0.00019857,2]
[374697789,1753417854385,-1500.0,0.00019857,2]
[374697790,1753417854394,-1615.75524555,0.00019857,2]
[374697791,1753417854404,-500.0,0.00019896,2]
[374697792,1753417854414,-501131.91347083,0.000199,2]
[374697793,1753417854426,-151.0,0.000199,2]
[374697794,1753417854436,-151.664092,0.000199,2]
[374697795,1753417854445,-460.0,0.00019926,2]
[374697796,1753417854456,-6423.7214443,0.00019934,2]
[374697797,1753417854467,-1518.26,0.00019995,2]
[374697798,1753417854476,-460.0,0.00019996,2]
[374697799,1753417854486,-2865.13,0.00019996,2]
[374697800,1753417854496,-1473.68,0.00019996,2]
[374697801,1753417854506,-460.0,0.00019996,2]
[374697802,1753417854517,-1303.91,0.00019996,2]
[374697803,1753417854526,-1396.28,0.00019996,2]
[374697804,1753417854539,-1165.0,0.00019996,2]
[374697805,1753417854549,-460.0,0.00019996,2]
[374697806,1753417854558,-548.61,0.00019996,2]
[374697807,1753417854568,-821.0,0.00019997,2]
[374697808,1753417854578,-718.0,0.00019997,2]
[374697809,1753417854588,-460.0,0.00019999,2]
[374697810,1753417854598,-460.0,0.00019999,2]
[374697811,1753417854608,-623.06,0.00019999,2]
[374697812,1753417854618,-555.6,0.00019999,2]
[374697813,1753417854628,-561.1,0.00019999,2]
[374697814,1753417854637,-460.0,0.00019999,2]
[374697815,1753417854647,-340.4,0.0002,2]
[374697816,1753417854657,-460.0,0.0002,2]
[374697817,1753417854667,-893.71,0.0002,2]
[374697818,1753417854676,-460.0,0.0002,2]
[374697819,1753417854685,-6938.76078138,0.0002,2]
[374697820,1753417854695,-4650.63521269,0.0002,2]
[374697821,1753417854704,-16000.0,0.0002,2]
[374697822,1753417854713,-35866.77406443,0.0002,2]
[374697823,1753417854723,-49709.27987211,0.0002,2]
[374697824,1753417854732,-21831.40448088,0.0002,2]
[374697825,1753417854741,-4000.0,0.0002,4]
[374697826,1753417854751,-374.11,0.00020096,2]
[374697827,1753417854761,-495.28,0.00020096,2]
[374697828,1753417854771,-525.43,0.00020096,2]
[374697829,1753417854780,-485.59,0.00020096,2]
[374697830,1753417854795,-460.0,0.00020096,2]
[374697831,1753417854805,-1557.28,0.00020096,2]
[374697832,1753417854814,-1056.98,0.00020096,2]
[374697833,1753417854824,-694.05,0.00020096,2]
[374697834,1753417854834,-1238.97,0.00020096,2]
[374697835,1753417854843,-569.5,0.00020096,2]
[374697836,1753417854852,-460.0,0.00020096,2]
[374697837,1753417854862,-2159.42,0.00020096,2]
[374697838,1753417854871,-486.48,0.00020096,2]
[374697839,1753417854881,-151.0,0.000201,3]
[374697840,1753417854890,-460.0,0.000201,2]
[374697841,1753417854899,-657.64,0.000201,2]
[374697842,1753417854909,-460.0,0.000201,2]
[374697843,1753417854919,-460.0,0.000201,2]
[374697844,1753417854928,-1958.78,0.000201,2]
[374697845,1753417854937,-477.43,0.000201,2]
[374697846,1753417854946,-1325.76,0.000201,2]
[374697847,1753417854956,-526.2,0.000201,2]
[374697848,1753417854965,-460.0,0.000201,2]
[374697849,1753417854975,-3195.63,0.000201,2]
[374697850,1753417854983,-1089.39,0.000201,2]
[374697851,1753417854993,-466.22,0.000201,2]
[374697852,1753417855003,-460.0,0.000201,2]
[374697853,1753417855013,-601.66,0.00020101,2]
[374697854,1753417855022,-587.0,0.00020163,2]
[374697855,1753417855032,-227.0,0.00020163,2]
[374697856,1753417855044,-587.0,0.00020163,2]
[374697857,1753417855053,-587.0,0.00020163,2]
[374697858,1753417855063,-587.0,0.00020163,2]
[374697859,1753417855072,-160.2,0.00020187,3]
[374697860,1753417855082,-275.455553,0.00020187,2]
[374697861,1753417855091,-460.0,0.000202,2]
[374697862,1753417855101,-6423.7214443,0.0002021,2]
[374697863,1753417855111,-2351.0,0.00020257,2]
[374697864,1753417855121,-1518.26,0.00020269,2]
[374697865,1753417855131,-460.0,0.0002027,2]
[374697866,1753417855141,-2865.13,0.0002027,2]
[374697867,1753417855150,-1473.68,0.0002027,2]
[374697868,1753417855160,-460.0,0.0002027,2]
[374697869,1753417855170,-1303.91,0.0002027,2]
[374697870,1753417855180,-1396.28,0.0002027,2]
[374697871,1753417855189,-1165.0,0.0002027,2]
[374697872,1753417855199,-460.0,0.0002027,2]
[374697873,1753417855208,-548.61,0.0002027,2]
[374697874,1753417855218,-821.0,0.00020271,2]
[374697875,1753417855228,-718.0,0.00020271,2]
[374697876,1753417855238,-460.0,0.00020273,2]
[374697877,1753417855247,-460.0,0.00020273,2]
[374697878,1753417855257,-623.06,0.00020273,2]
[374697879,1753417855267,-555.6,0.00020273,2]
[374697880,1753417855276,-561.1,0.00020273,2]
[374697881,1753417855286,-460.0,0.00020273,2]
[374697882,1753417855296,-460.0,0.00020274,2]
[374697883,1753417855306,-893.71,0.00020274,2]
[374697884,1753417855315,-460.0,0.00020274,2]
[374697885,1753417855325,-460.0,0.00020344,2]
[374697886,1753417855335,-25000.0,0.00020352,2]
[374697887,1753417855345,-215.0738,0.00020352,2]
[374697888,1753417855355,-3801.642,0.00020352,2]
[374697889,1753417855373,-20491.78673072,0.00020352,2]
[374697890,1753417855386,-152.66102713,0.00020352,2]
[374697891,1753417855396,-151.0,0.00020352,2]
[374697892,1753417855407,-151.0,0.00020352,2]
[374697893,1753417855418,-151.0,0.00020352,2]
[374697894,1753417855431,-151.0,0.00020352,2]
[374697895,1753417855441,-151.0,0.00020352,2]
[374697896,1753417855451,-151.0,0.00020352,2]
[374697897,1753417855462,-151.0,0.00020352,2]
[374697898,1753417855472,-151.0,0.00020352,2]
[374697899,1753417855482,-151.0,0.00020352,2]
[374697900,1753417855493,-151.0,0.00020352,2]
[374697901,1753417855503,-279.60102579,0.00020352,2]
[374697902,1753417855514,-2351.0,0.00020362,2]
[374697903,1753417855524,-495.28,0.0002037,2]
[374697904,1753417855535,-525.43,0.0002037,2]
[374697905,1753417855546,-485.59,0.0002037,2]
[374697906,1753417855556,-460.0,0.0002037,2]
[374697907,1753417855565,-1557.28,0.0002037,2]
[374697908,1753417855575,-1056.98,0.0002037,2]
[374697909,1753417855585,-694.05,0.0002037,2]
[374697910,1753417855595,-1238.97,0.0002037,2]
[374697911,1753417855605,-569.5,0.0002037,2]
[374697912,1753417855615,-216.01920914,0.0002037,2]
[374697913,1753417855625,-2159.42,0.0002037,2]
[374697914,1753417855635,-486.48,0.0002037,2]
[374697915,1753417855644,-258.39,0.00020374,2]
[374697916,1753417855654,-657.64,0.00020374,2]
[374697917,1753417855665,-460.0,0.00020374,2]
[374697918,1753417855674,-460.0,0.00020374,2]
[374697919,1753417855684,-1958.78,0.00020374,2]
[374697920,1753417855694,-477.43,0.00020374,2]
[374697921,1753417855704,-1325.76,0.00020374,2]
[374697922,1753417855714,-526.2,0.00020374,2]
[374697923,1753417855723,-460.0,0.00020374,2]
[374697924,1753417855734,-3195.63,0.00020374,2]
[374697925,1753417855744,-1089.39,0.00020374,2]
[374697926,1753417855754,-460.0,0.00020374,2]
[374697927,1753417855764,-601.66,0.00020375,2]
[374697928,1753417855774,-214.7599002,0.000204,3]
[374697929,1753417855787,-623.84133564,0.00020405,2]
[374697930,1753417855797,-1000.0,0.00020405,2]
[374697931,1753417855807,-3942.302754,0.00020407,2]
[374697932,1753417855817,-4088.1679559,0.00020462,2]
[374697933,1753417855827,-460.0,0.00020474,2]
[374697934,1753417855838,-6423.7214443,0.00020486,3]
[374697935,1753417855848,-151.0,0.000205,4]
[374697936,1753417855858,-9301.73776194,0.000205,2]
[374697937,1753417855868,-155.81223404,0.00020504,2]
[374697938,1753417855879,-2622.06239546,0.00020513,2]
[374697939,1753417855889,-4239.43017027,0.00020517,2]
[374697940,1753417855900,-1518.26,0.00020543,2]